bitfinex-derivatives/quotes_SOLF0:USTF0_20240830
["timestamp","ask_amount","ask_price","bid_price","bid_amount"]
[1725029995437,0.05090261,135.69,135.67,0.05064089]
[1725029995738,0.0550889,135.69,135.67,0.0501857]
[1725029998740,42.32,135.8,135.66,3.60649266]
[1725029998938,42.32,135.8,135.68,3.6849]
[1725029999143,42.32,135.76,135.67,4.96200324]
[1725029999333,42.32,135.8,135.67,1.3463]
[1725029999637,42.32,135.68,135.63,1.3521]
[1725029999939,0.05405192,135.67,135.64,0.05318142]
[1725030000537,42.32,135.66,135.64,0.05318142]
[1725030000934,0.05405192,135.67,135.64,0.05318142]
[1725030001136,3.6857,135.65,135.64,0.05318142]
[1725030002344,3.6877,135.58,135.53,100.0]
[1725030002539,42.32,135.6,135.53,100.0]
[1725030002735,42.32,135.64,135.53,100.0]
[1725030002944,1.0,135.64,135.57,42.32]
[1725030003137,1.0,135.64,135.53,100.0]
[1725030003138,42.32,135.63,135.53,100.0]
[1725030003340,42.32,135.6,135.53,100.0]
[1725030003536,0.05056849,135.59,135.57,0.04848628]
[1725030003839,0.0526836,135.59,135.57,0.05370524]
[1725030004043,0.0526836,135.59,135.57,3.74140524]
[1725030004349,0.0526836,135.59,135.57,0.05370524]
[1725030004844,42.32,135.67,135.56,12.18]
[1725030005043,42.32,135.67,135.56,42.32]
[1725030005241,29.46,135.82,135.63,42.32]
[1725030005441,42.32,135.78,135.65,42.32]
[1725030005637,42.32,135.86,135.65,42.32]
[1725030005638,42.32,135.79,135.65,42.32]
[1725030005837,0.04895303,135.73,135.71,0.05068435]
[1725030006038,0.04908444,135.73,135.71,0.05068435]
[1725030007149,42.36908444,135.73,135.66,12.18]
[1725030007337,42.36908444,135.73,135.53,100.0]
[1725030007338,42.36908444,135.73,135.63,3.72225547]
[1725030007539,42.32,135.7,135.59,45.1107]
[1725030007745,42.32,135.68,135.59,6.56787883]
[1725030007948,42.32,135.68,135.63,3.6861]
[1725030008147,0.05080287,135.67,135.64,0.0531445]
[1725030008453,3.687,135.61,135.55,3.6882]
[1725030008655,42.32,135.66,135.54,3.64470484]
[1725030008943,42.32,135.66,135.58,3.6875]
[1725030009145,42.32,135.66,135.55,1.3705]
[1725030009451,46.0071,135.6,135.59,0.05567182]
[1725030009640,46.0071,135.6,135.53,100.0]
[1725030009641,42.32,135.6,135.53,100.0]
[1725030010645,0.04931027,135.58,135.55,0.0503237]
[1725030011045,0.04931027,135.58,135.56,3.688]
[1725030011251,42.32,135.68,135.55,0.0503237]
[1725030011447,42.32,135.68,135.56,42.32]
[1725030011748,42.32,135.66,135.56,16.3781137]
[1725030011954,42.32,135.69,135.56,46.0981137]
[1725030012250,0.05416221,135.64,135.61,0.05669006]
[1725030012446,0.05416221,135.64,135.53,100.0]
[1725030012447,42.32,135.62,135.53,100.0]
[1725030012652,42.32,135.59,135.53,100.0]
[1725030012855,42.32,135.57,135.53,100.0]
[1725030013248,42.32,135.59,135.53,100.0]
[1725030013444,0.05138798,135.57,135.55,0.04873661]
[1725030015353,3.6882,135.56,135.55,0.04873661]
[1725030016155,0.05138798,135.57,135.55,0.04873661]
[1725030016353,42.32,135.56,135.55,0.04873661]
[1725030016553,0.05138798,135.57,135.55,0.04873661]
[1725030016752,3.6882,135.56,135.55,0.04873661]
[1725030016949,46.0082,135.56,135.55,0.04873661]
[1725030017154,3.6882,135.56,135.55,0.04873661]
[1725030017351,3.6882,135.56,135.53,96.16]
[1725030017352,3.6887,135.54,135.53,96.16]
[1725030017558,54.92,135.54,135.33,100.0]
[1725030017769,7.3741,135.61,135.36,42.32]
[1725030017964,1.0,135.55,135.45,42.32]
[1725030018368,0.05146606,135.51,135.46,3.72177121]
[1725030018567,0.05656031,135.5,135.47,42.32]
[1725030018769,0.04680126,135.5,135.48,1.4097]
[1725030018969,0.04761445,135.5,135.48,1.4097]
[1725030019273,42.32,135.61,135.48,17.65767047]
[1725030019274,3.6876,135.58,135.48,17.65767047]
[1725030019466,42.32,135.63,135.49,42.32]
[1725030019677,42.32,135.63,135.51,42.32]
[1725030019977,42.32,135.8,135.51,42.32]
[1725030019978,42.32,135.7,135.56,42.32]
[1725030020175,42.32,135.8,135.66,3.6854]
[1725030020176,42.32,135.73,135.66,3.6854]
[1725030020468,0.05225644,135.71,135.68,0.04824322]
[1725030020671,0.05472541,135.71,135.68,0.0507518]
[1725030021273,0.05472541,135.71,135.7,3.6844]
[1725030022167,42.32,135.77,135.73,3.6835]
[1725030022362,42.32,135.77,135.69,12.6]
[1725030022786,42.32,135.77,135.7,12.6]
[1725030022969,71.8,135.86,135.64,3.75884173]
[1725030022970,42.32,135.8,135.71,12.6]
[1725030023273,42.32,135.8,135.74,0.04939694]
[1725030023274,0.05569085,135.77,135.74,0.04939694]
[1725030023981,42.32,135.82,135.74,0.04939694]
[1725030024370,42.32,135.8,135.74,0.04939694]
[1725030024674,42.32,135.82,135.75,3.72800235]
[1725030024980,0.0501145,135.8,135.77,0.04987321]
[1725030025768,42.3701145,135.8,135.77,0.04987321]
[1725030025972,42.32,135.78,135.77,0.04987321]
[1725030026169,42.32,135.78,135.7,29.48]
[1725030026367,3.77034091,135.89,135.71,12.6]
[1725030026572,42.32,135.83,135.71,54.92]
[1725030027176,0.05000243,135.78,135.76,0.05555323]
[1725030027390,0.0469641,135.78,135.76,0.05555323]
[1725030028269,0.0469641,135.78,135.77,3.6825]
[1725030028469,16.37218172,135.92,135.76,0.05555323]
[1725030028470,3.63217967,135.85,135.76,0.05555323]
[1725030028773,42.32,135.84,135.74,3.76445033]
[1725030029072,42.32,135.86,135.72,1.2932]
[1725030029380,42.32,135.86,135.78,0.0470603]
[1725030029381,0.04739341,135.8,135.78,0.0470603]
[1725030029772,0.04739341,135.8,135.79,3.6817]
[1725030030090,0.04739341,135.8,135.78,0.0470603]
[1725030030381,0.04739341,135.8,135.78,3.7289603]
[1725030030883,0.04739341,135.8,135.79,3.6819]
[1725030031176,42.36739341,135.8,135.64,54.92]
[1725030031476,3.6833,135.74,135.69,3.6844]
[1725030031674,42.32,135.77,135.67,12.6]
[1725030031974,42.32,135.77,135.68,12.6]
[1725030032177,0.04762063,135.74,135.71,0.05556495]
[1725030032382,0.05203493,135.74,135.71,0.05538792]
[1725030033370,0.05203493,135.74,135.71,3.73928792]
[1725030033581,0.05203493,135.74,135.71,0.05538792]
[1725030033869,0.05203493,135.74,135.71,3.69228698]
[1725030034072,0.05203493,135.74,135.71,0.05538792]
[1725030034276,0.05203493,135.74,135.72,16.33913683]
[1725030034482,0.05203493,135.74,135.71,0.05538792]
[1725030034483,0.05203493,135.74,135.71,12.65538792]
[1725030034696,0.05203493,135.74,135.71,0.05538792]
[1725030034979,0.05203493,135.74,135.71,3.73938792]
[1725030035190,0.05203493,135.74,135.72,3.62645455]
[1725030035575,42.32,135.81,135.71,12.6]
[1725030035773,49.6767,135.93,135.71,12.6]
[1725030035774,42.32,135.84,135.72,12.6]
[1725030035973,12.7122,135.9,135.66,1.3658]
[1725030035974,42.32,135.81,135.66,1.3658]
[1725030036192,3.6825,135.77,135.67,43.65343816]
[1725030036483,42.32,135.81,135.68,13.93334929]
[1725030036684,0.05506838,135.76,135.73,0.05046652]
[1725030036980,0.05506838,135.76,135.73,3.78076553]
[1725030037178,3.6831,135.75,135.73,0.05046652]
[1725030037387,42.32,135.74,135.66,5.13402801]
[1725030037680,12.82,135.81,135.66,5.00752068]
[1725030037879,42.32,135.78,135.66,5.00752068]
[1725030038177,42.32,135.8,135.66,60.14752068]
[1725030038380,3.6825,135.77,135.66,17.82752068]
[1725030038576,0.04810493,135.74,135.73,3.6834]
[1725030038882,0.04706865,135.75,135.72,0.05023213]
[1725030039077,0.04706865,135.75,135.73,3.6835]
[1725030039276,0.04706865,135.75,135.72,0.05023213]
[1725030039479,12.82,135.87,135.72,0.05023213]
[1725030039480,42.32,135.83,135.72,0.05023213]
[1725030039674,42.32,135.78,135.68,29.46]
[1725030039881,42.32,135.78,135.66,5.00752068]
[1725030040179,42.32,135.8,135.66,5.00752068]
[1725030040381,3.6828,135.76,135.66,17.82752068]
[1725030040580,0.04912987,135.72,135.7,0.05664683]
[1725030040785,0.04912987,135.72,135.7,0.04698484]
[1725030040786,0.04742397,135.72,135.7,0.04698484]
[1725030041479,0.04742397,135.72,135.71,3.6841]
[1725030041686,42.32,135.8,135.67,42.32]
[1725030041882,42.32,135.82,135.7,42.32]
[1725030042080,42.32,135.85,135.72,42.32]
[1725030042283,3.6815,135.81,135.77,3.6823]
[1725030042679,0.05302544,135.8,135.78,0.04784755]
[1725030043587,42.32,135.87,135.77,3.73995745]
[1725030043890,3.681,135.83,135.79,3.6818]
[1725030044185,3.681,135.83,135.76,16.41621292]
[1725030044391,3.681,135.83,135.79,3.6817]
[1725030044689,3.6814,135.81,135.8,0.05013207]
[1725030044986,42.32,135.8,135.65,43.7399]
[1725030045187,42.32,135.76,135.67,1.33340051]
[1725030045382,42.32,135.76,135.65,1.4199]
[1725030045687,3.6838,135.72,135.66,17.80752068]
[1725030045883,0.05279896,135.7,135.68,0.0564835]
[1725030046080,0.04948406,135.7,135.68,0.0564835]
[1725030046488,42.32,135.8,135.72,3.6838]
[1725030046687,3.683,135.76,135.72,3.6838]
[1725030046983,42.32,135.8,135.68,42.32]
[1725030047287,42.32,135.82,135.68,42.32]
[1725030047484,0.04648987,135.76,135.74,0.05117596]
[1725030047690,0.05266593,135.76,135.74,0.05117596]
[1725030048091,0.05266593,135.76,135.75,3.683]
[1725030048898,42.32,135.85,135.77,3.6822]
[1725030049186,42.32,135.85,135.74,12.8]
[1725030049887,42.32,135.8,135.74,12.8]
[1725030050091,3.6819,135.79,135.78,0.05230203]
[1725030050387,42.37506385,135.8,135.77,0.0553746]
[1725030050595,42.32,135.78,135.68,29.46]
[1725030050893,42.32,135.75,135.66,1.3658]
[1725030051192,42.32,135.78,135.66,43.6858]
[1725030051487,42.32,135.75,135.66,1.3658]
[1725030051680,0.04711169,135.72,135.69,0.05327429]
[1725030053789,0.04711169,135.72,135.69,3.73787429]
[1725030053991,0.04711169,135.72,135.69,0.05327429]
[1725030054288,0.04711169,135.72,135.71,3.6841]
[1725030054682,42.32,135.83,135.71,42.32]
[1725030054888,42.32,135.81,135.67,29.46]
[1725030055085,42.32,135.81,135.68,42.32]
[1725030055486,3.6821,135.79,135.68,42.32]
[1725030055683,0.05530197,135.75,135.72,0.04887518]
[1725030055884,0.04921807,135.75,135.74,3.6833]
[1725030056085,0.04921807,135.75,135.72,0.05661173]
[1725030056891,0.04921807,135.75,135.72,3.73128389]
[1725030057086,0.04921807,135.75,135.74,3.6833]
[1725030057292,0.04921807,135.75,135.72,0.05661173]
[1725030058295,42.32,135.74,135.65,3.67066705]
[1725030058498,42.32,135.71,135.62,1.3449]
[1725030058894,3.6844,135.7,135.62,1.3449]
[1725030059193,42.32,135.71,135.62,1.3449]
[1725030059386,42.32,135.71,135.59,42.32]
[1725030059387,0.04703733,135.67,135.65,0.04871059]
[1725030060893,42.32,135.75,135.62,46.01347473]
[1725030061092,42.32,135.79,135.64,42.32]
[1725030061285,42.32,135.79,135.6,21.5912]
[1725030061286,42.32,135.79,135.66,42.32]
[1725030061488,42.32,135.79,135.67,14.1163]
[1725030061687,42.32,135.81,135.68,42.32]
[1725030061995,42.32,135.81,135.73,0.0547877]
[1725030061996,0.05093914,135.76,135.73,0.0547877]
[1725030062597,0.05093914,135.76,135.75,3.683]
[1725030062796,0.05093914,135.76,135.73,0.0547877]
[1725030063197,0.05093914,135.76,135.75,3.683]
[1725030063599,4.15797261,135.88,135.74,3.5951295]
[1725030063797,42.32,135.86,135.75,42.32]
[1725030064099,42.32,135.88,135.77,42.32]
[1725030064296,3.6802,135.86,135.77,42.32]
[1725030066102,0.01932618,135.83,135.82,32.37338847]
[1725030066993,0.01932618,135.83,135.82,35.97269622]
[1725030067293,0.01932618,135.83,135.82,32.37338847]
[1725030067794,0.01932618,135.83,135.82,28.69228847]
[1725030068005,0.01932618,135.83,135.82,28.64058847]
[1725030068006,3.70012618,135.83,135.82,28.64058847]
[1725030068197,46.02012618,135.83,135.82,2.92361475]
[1725030068394,46.02012618,135.83,135.82,2.53271475]
[1725030068592,7.3547,135.96,135.82,2.53271475]
[1725030068792,42.32,135.89,135.78,42.32]
[1725030068992,42.32,135.86,135.74,2.8212]
[1725030069193,42.32,135.81,135.7,30.7536]
[1725030069395,42.32,135.81,135.7,1.2936]
[1725030069595,3.6811,135.83,135.74,0.05258261]
[1725030069801,0.04735658,135.8,135.77,0.05527947]
[1725030071101,3.6822,135.78,135.77,0.05527947]
[1725030071297,42.32,135.79,135.65,12.6]
[1725030071493,42.32,135.74,135.61,42.32]
[1725030071698,42.32,135.72,135.62,1.33378362]
[1725030071994,42.32,135.7,135.62,3.76104565]
[1725030072199,3.6848,135.69,135.59,45.0065]
[1725030072502,0.04902796,135.65,135.63,0.04820216]
[1725030072694,0.04787019,135.65,135.63,0.05184675]
[1725030072895,0.04787019,135.65,135.64,3.686]
[1725030073503,0.04787019,135.65,135.63,0.05184675]
[1725030074104,0.04787019,135.65,135.64,3.686]
[1725030074306,0.04787019,135.65,135.63,0.05184675]
[1725030074604,0.04787019,135.65,135.63,42.37184675]
[1725030074822,43.32,135.77,135.63,42.32]
[1725030075104,3.70839469,135.85,135.59,6.28186082]
[1725030075105,3.70839469,135.85,135.68,42.32]
[1725030075305,42.32,135.78,135.65,54.92]
[1725030075610,42.32,135.76,135.63,42.32]
[1725030075804,42.32,135.76,135.68,0.0494213]
[1725030075805,3.7308346,135.71,135.68,0.0494213]
[1725030076108,0.0465346,135.71,135.68,0.0494213]
[1725030076305,46.0046,135.69,135.68,0.0494213]
[1725030076505,3.6846,135.69,135.68,0.0494213]
[1725030076708,42.3665346,135.71,135.68,0.0494213]
[1725030077204,46.02883048,135.71,135.68,0.0494213]
[1725030077411,0.0465346,135.71,135.68,0.0494213]
[1725030077704,3.6844,135.7,135.68,0.0494213]
[1725030077910,0.0465346,135.71,135.68,0.0494213]
[1725030078119,0.0465346,135.71,135.7,3.6844]
[1725030078402,1.0,135.77,135.7,3.6844]
[1725030078403,54.92,135.83,135.7,42.32]
[1725030078909,54.92,135.83,135.72,3.6836]
[1725030079110,12.6,135.83,135.73,42.32]
[1725030079309,0.04932165,135.79,135.77,0.05406889]
[1725030079504,3.75047532,135.79,135.77,0.05005003]
[1725030079704,46.0022,135.78,135.77,0.05005003]
[1725030080005,3.62182723,135.78,135.68,42.32]
[1725030080210,42.32,135.78,135.66,42.32]
[1725030080507,3.6836,135.73,135.66,45.92819056]
[1725030080715,42.32,135.78,135.66,45.92819056]
[1725030080909,0.05147738,135.71,135.68,0.04717516]
[1725030081109,3.66929067,135.71,135.68,0.04756451]
[1725030081311,3.6846,135.69,135.68,0.04756451]
[1725030081518,0.0511733,135.71,135.68,0.04756451]
[1725030081908,3.6846,135.69,135.68,0.04756451]
[1725030082207,0.0511733,135.71,135.68,0.04756451]
[1725030082407,0.0511733,135.71,135.68,3.73246451]
[1725030082616,0.0511733,135.71,135.68,0.04756451]
[1725030083007,0.0511733,135.71,135.69,3.6844]
[1725030083205,0.0511733,135.71,135.68,0.04756451]
[1725030083407,0.0511733,135.71,135.68,3.73226451]
[1725030083607,0.0511733,135.71,135.68,0.04756451]
[1725030084009,0.0511733,135.71,135.69,3.6844]
[1725030084212,0.0511733,135.71,135.68,0.04756451]
[1725030085715,3.6846,135.69,135.68,0.04756451]
[1725030085911,0.0511733,135.71,135.68,0.04756451]
[1725030087717,3.6846,135.69,135.68,0.04756451]
[1725030088516,3.6846,135.69,135.56,43.7041]
[1725030088517,42.32,135.69,135.56,43.7041]
[1725030088716,42.32,135.66,135.56,3.66330283]
[1725030088911,3.6871,135.61,135.54,42.32]
[1725030089113,42.32,135.66,135.54,42.32]
[1725030089310,42.32,135.66,135.56,3.688]
[1725030089515,0.05029016,135.62,135.56,3.61613425]
[1725030089710,0.05029016,135.62,135.58,0.05176981]
[1725030090018,0.05029016,135.62,135.58,7.41188525]
[1725030090218,3.73689016,135.62,135.58,3.73936981]
[1725030090421,3.73689016,135.62,135.59,3.6873]
[1725030090621,0.05029016,135.62,135.58,46.08433803]
[1725030090817,0.05029016,135.62,135.58,42.37176981]
[1725030091015,0.05029016,135.62,135.58,0.05176981]
[1725030091216,0.05029016,135.62,135.58,46.05262244]
[1725030091414,0.05029016,135.62,135.58,42.37176981]
[1725030092020,0.05029016,135.62,135.58,3.74884902]
[1725030092920,0.05029016,135.62,135.58,7.43634902]
[1725030093223,0.05029016,135.62,135.58,3.74884902]
[1725030093425,0.05029016,135.62,135.61,3.6868]
[1725030093922,54.52,135.74,135.6,42.32]
[1725030094224,42.32,135.74,135.6,42.32]
[1725030094620,42.32,135.71,135.6,42.32]
[1725030094921,0.04977858,135.67,135.64,0.05070621]
[1725030095122,46.11876464,135.67,135.58,3.73866234]
[1725030095425,3.6875,135.59,135.55,3.68667502]
[1725030095620,42.32,135.64,135.53,42.32]
[1725030095821,42.32,135.64,135.53,45.96464272]
[1725030096027,42.32,135.64,135.59,3.6873]
[1725030096212,0.0549194,135.63,135.6,0.052314]
[1725030096421,3.6867,135.62,135.56,42.32]
[1725030096620,3.6867,135.62,135.6,0.04810752]
[1725030096820,0.0549194,135.63,135.6,0.04810752]
[1725030097633,3.6868,135.61,135.6,0.04810752]
[1725030097819,3.6868,135.61,135.6,7.52e-06]
[1725030098021,3.6891,135.53,135.5,3.68758754]
[1725030098224,42.32,135.59,135.5,3.68758754]
[1725030098624,3.6892,135.53,135.47,43.6491]
[1725030098825,3.6892,135.53,135.49,3.6899]
[1725030099027,0.05423587,135.52,135.5,0.04722279]
[1725030099224,3.6895,135.51,135.5,0.05281638]
[1725030099424,3.6895,135.51,135.5,0.00508699]
[1725030099631,46.04933916,135.52,135.33,100.0]
[1725030099632,84.64,135.52,135.33,100.0]
[1725030099933,42.32,135.48,135.36,42.32]
[1725030100126,3.6633188,135.47,135.37,5.00100594]
[1725030100326,42.32,135.48,135.37,3.6933]
[1725030100523,3.6474411,135.47,135.36,42.32]
[1725030100729,3.6918,135.43,135.36,42.32]
[1725030100931,0.05375225,135.41,135.38,0.04804302]
[1725030103837,3.6928,135.39,135.38,0.04804302]
[1725030104047,45.92373238,135.39,135.33,100.0]
[1725030104334,3.6961,135.27,135.23,2.14295043]
[1725030104534,3.6961,135.27,135.26,92.67]
[1725030104727,42.32,135.32,135.26,92.67]
[1725030104935,3.6945,135.33,135.26,92.67]
[1725030105127,0.05308163,135.31,135.28,0.05242275]
[1725030105334,42.37308163,135.31,135.28,0.05242275]
[1725030105641,42.32,135.29,135.23,2.14295043]
[1725030105937,46.01274534,135.31,135.23,2.14295043]
[1725030106129,3.69274534,135.31,135.23,2.14295043]
[1725030106442,1.0,135.32,135.23,2.14295043]
[1725030106443,1.0,135.32,135.24,42.32]
[1725030106736,1.0,135.32,135.23,2.14295043]
[1725030106945,0.04750979,135.29,135.28,42.32]
[1725030107143,42.32,135.42,135.28,42.32]
[1725030107336,42.32,135.37,135.23,2.14295043]
[1725030107540,42.32,135.34,135.24,2.6634]
[1725030107842,42.32,135.32,135.23,2.14295043]
[1725030108241,0.04917815,135.29,135.26,0.05027493]
[1725030108640,12.32917815,135.29,135.26,0.05027493]
[1725030108939,0.04917815,135.29,135.26,0.05027493]
[1725030109137,42.32,135.27,135.26,0.05027493]
[1725030109340,54.6,135.27,135.23,0.24295043]
[1725030109544,42.32,135.24,135.16,7.53664544]
[1725030109846,42.32,135.17,135.01,42.32]
[1725030110146,45.98696571,135.17,135.06,3.7018]
[1725030110349,3.66696571,135.17,135.04,42.32]
[1725030110536,3.66696571,135.17,134.97,46.2948]
[1725030110537,12.28,135.17,135.07,3.7013]
[1725030110741,12.28,135.17,134.97,46.2948]
[1725030110742,12.28,135.17,135.1,0.05623378]
[1725030111045,0.05408564,135.13,135.06,42.32]
[1725030111241,7.33062137,135.13,135.12,0.0497652]
[1725030111440,1.0,135.23,134.97,3.9748]
[1725030111441,0.05631337,135.11,135.03,42.32]
[1725030111644,42.32,135.19,135.05,42.32]
[1725030111852,0.05666753,135.08,135.06,0.05629066]
[1725030112044,43.32,135.23,135.07,3.74204327]
[1725030112238,3.6991,135.16,135.0,104.61740712]
[1725030112546,55.1,135.21,135.09,42.32]
[1725030112744,1.0,135.23,135.14,42.32]
[1725030112944,42.32,135.25,135.14,42.32]
[1725030113148,0.04977662,135.2,135.17,0.05149392]
[1725030113348,42.32,135.28,135.14,45.97614097]
[1725030113349,46.0158,135.28,135.14,45.97614097]
[1725030113649,46.0158,135.28,135.1,2.6845]
[1725030113650,0.05324738,135.2,135.17,0.04775447]
[1725030113840,3.6973,135.23,135.12,42.32]
[1725030114240,0.04677966,135.19,135.16,0.05247134]
[1725030114548,0.04867906,135.19,135.16,0.05459705]
[1725030114849,45.93619527,135.32,135.17,42.32]
[1725030115036,42.32,135.26,135.14,51.08]
[1725030115242,3.61619527,135.32,135.11,42.32]
[1725030115243,42.32,135.24,135.11,42.32]
[1725030115655,42.32,135.24,135.11,3.61027739]
[1725030115852,42.32,135.26,135.16,42.32]
[1725030116148,0.05142124,135.22,135.2,0.05121744]
[1725030118443,42.37142124,135.22,135.2,0.05121744]
[1725030118649,0.05142124,135.22,135.2,0.05121744]
[1725030118944,3.6977,135.21,135.2,0.05121744]
[1725030119750,3.76608965,135.21,135.07,42.32]
[1725030119946,42.32,135.18,135.04,43.726]
[1725030120152,42.32,135.16,135.04,43.726]
[1725030120341,42.32,135.16,135.04,1.406]
[1725030120549,13.26,135.15,135.04,1.406]
[1725030120742,0.04724565,135.11,135.08,0.04802742]
[1725030120942,0.05667133,135.11,135.08,0.05589096]
[1725030121552,3.701,135.09,135.08,0.05589096]
[1725030121751,59.281,135.09,135.08,0.05589096]
[1725030121952,55.58,135.09,134.95,42.32]
[1725030122144,42.32,135.05,134.88,3.9835]
[1725030122345,3.7062,134.9,134.89,1.3408157]
[1725030122548,29.58,134.96,134.7,42.32]
[1725030122746,42.32,134.92,134.79,42.32]
[1725030122948,42.32,134.98,134.68,42.84]
[1725030123154,0.05446294,134.87,134.84,0.05205]
[1725030123456,0.05446294,134.87,134.6,7.4287]
[1725030123457,42.75,134.85,134.73,1.3418057]
[1725030123755,13.7,134.86,134.75,42.75]
[1725030123946,29.58,134.89,134.67,2.6969]
[1725030124143,13.7,135.01,134.86,42.75]
[1725030124345,13.7,135.01,134.83,42.75]
[1725030124346,3.77492032,135.03,134.91,42.75]
[1725030124646,0.05508641,134.95,134.92,0.048976]
[1725030124950,85.5,134.93,134.52,3.67264507]
[1725030125148,42.75,134.78,134.64,42.75]
[1725030125345,42.75,134.78,134.64,46.53826057]
[1725030125554,42.75,134.84,134.69,42.75]
[1725030125747,1.0,134.92,134.77,42.75]
[1725030125947,1.0,134.92,134.79,42.75]
[1725030126143,42.75,134.98,134.82,42.75]
[1725030126349,42.75,134.98,134.85,42.75]
[1725030126572,42.75,135.01,134.77,3.64225894]
[1725030126849,42.75,135.04,134.9,42.79309265]
[1725030127057,42.75,135.04,134.92,3.7056]
[1725030127058,42.75,135.01,134.92,3.7056]
[1725030127244,42.75,135.01,134.83,42.75]
[1725030127245,128.25,134.93,134.27,223.51466328]
[1725030127553,42.75,134.84,134.69,42.75]
[1725030127751,42.75,134.78,134.7,1.307]
[1725030127951,0.05377436,134.78,134.7,1.307]
[1725030128155,0.05377436,134.78,134.73,0.04764079]
[1725030128751,0.05377436,134.78,134.58,1.3173]
[1725030128752,42.75,134.74,134.58,1.3173]
[1725030128954,42.75,134.77,134.61,42.75]
[1725030129152,42.75,134.77,134.59,2.66724262]
[1725030129153,42.75,134.72,134.59,1.3239]
[1725030129352,42.75,134.72,134.42,68.2159395]
[1725030129353,42.75,134.64,134.42,68.2159395]
[1725030129554,42.75,134.64,134.49,42.75]
[1725030129749,20.64,134.62,134.44,2.7453]
[1725030129953,0.05530396,134.54,134.52,0.04456516]
[1725030130154,13.27,134.62,134.44,2.7453]
[1725030130357,42.75,134.53,134.52,0.04456516]
[1725030130555,0.04998924,134.54,134.51,0.04456516]
[1725030130750,1.0,134.53,134.37,42.75]
[1725030130947,42.75,134.52,134.4,42.75]
[1725030131149,42.75,134.56,134.36,42.75]
[1725030131150,42.75,134.56,134.42,42.75]
[1725030131354,42.75,134.51,134.37,42.75]
[1725030131549,42.75,134.56,133.67,207.32]
[1725030131550,42.75,134.5,134.14,3.78812979]
[1725030131755,42.75,134.5,134.27,42.75]
[1725030131756,0.05403107,134.33,134.27,42.75]
[1725030131954,29.64,134.5,134.32,42.75]
[1725030131955,42.75,134.45,134.32,42.75]
[1725030132155,42.75,134.5,134.37,42.75]
[1725030132349,42.75,134.42,133.85,223.51466328]
[1725030132553,42.75,134.36,134.21,42.75]
[1725030132760,42.75,134.28,134.14,44.0973]
[1725030132952,0.0505074,134.23,134.14,44.0973]
[1725030133152,42.75,134.36,134.22,42.75]
[1725030133355,0.05435171,134.2,134.14,1.3473]
[1725030133757,0.05435171,134.2,134.1,42.75]
[1725030133951,42.75,134.15,134.11,1.34826255]
[1725030134158,42.75,134.12,133.97,42.75]
[1725030134361,42.75,134.01,133.68,29.9196]
[1725030134664,42.75,134.01,133.74,3.68685693]
[1725030134665,37.49024526,133.98,133.74,3.68685693]
[1725030134867,37.49024526,133.98,133.81,3.80058973]
[1725030134868,35.38,133.89,133.81,3.80058973]
[1725030135057,42.75,133.82,133.81,3.80058973]
[1725030135257,29.68,133.88,133.81,0.07058973]
[1725030135558,42.75,133.89,133.81,0.07058973]
[1725030135753,1.0,134.11,133.61,42.75]
[1725030135754,1.0,134.11,133.68,1.2481235]
[1725030135950,42.75,133.69,133.43,11.2412]
[1725030136155,42.75,133.62,133.4,96.46]
[1725030136354,0.05072306,133.86,133.44,2.24887003]
[1725030136572,1.0,134.11,133.44,1.0]
[1725030136757,1.0,134.11,133.41,3.7474]
[1725030136954,39.01920796,134.84,133.1,18.7808]